fUST/lending_fUST_20260401
["ID","MTS","AMOUNT","RATE_DAILY","PERIOD"]
[419181847,1775009448119,-502.64888905,0.00022773,2]
[419181848,1775009448128,-513.16549196,0.00022773,2]
[419181849,1775009448138,-504.05489347,0.00022773,2]
[419181850,1775009448147,-2183.31810187,0.00022815,2]
[419181851,1775009448157,-438.72241837,0.0002287,2]
[419181852,1775009448168,-1000.0,0.0002295,10]
[419181853,1775009448179,-492.0,0.0002295,10]
[419181854,1775009448189,-2487.15318209,0.00023198,2]
[419181855,1775009448198,-177.359047,0.00023567,2]
[419181856,1775009448208,-2579.17784983,0.00023746,2]
[419181857,1775009448217,-5081.7489866,0.00023781,2]
[419181858,1775009448227,-500.0,0.00023967,2]
[419181859,1775009448237,-516.01091877,0.00023967,2]
[419181860,1775009448247,-1822.98,0.00024064,3]
[419181861,1775009448256,-911.48,0.00024064,3]
[419181862,1775009448266,-455.74,0.00024064,3]
[419181863,1775009448275,-504.88559212,0.00024273,2]
[419181864,1775009448284,-504.19513084,0.00024273,2]
[419181865,1775009448293,-501.17815073,0.00024273,2]
[419181866,1775009448303,-2674.60743027,0.00024294,2]
[419181867,1775009448313,-160.0,0.00024314,3]
[419181868,1775009448322,-270.83333333,0.00024334,2]
[419181869,1775009448332,-1000.0,0.00024515,2]
[419181870,1775009448341,-2000.0,0.00024658,7]
[419181871,1775009448350,-160.0,0.00024789,4]
[419181872,1775009448360,-179.96544196,0.00024971,10]
[419181873,1775009448370,-1500.0,0.00025063,2]
[419181874,1775009448379,-1000.0,0.00025245,10]
[419181875,1775009448389,-791.0,0.00025245,10]
[419181876,1775009448398,-160.0,0.00025264,5]
[419181877,1775009448408,-180.08824324,0.00025417,2]
[419181878,1775009448417,-455.1219555,0.0002545,2]
[419181879,1775009448427,-2000.0,0.00025611,2]
[419181880,1775009448436,-184.0,0.00025697,2]
[419181881,1775009448446,-440.0,0.00025697,2]
[419181882,1775009448455,-160.0,0.00025739,6]
[419181883,1775009448464,-791.0,0.000258,2]
[419181884,1775009448474,-366.43762159,0.00026053,2]
[419181885,1775009448483,-418.78585325,0.00026053,2]
[419181886,1775009448493,-654.3528957,0.00026053,2]
[419181887,1775009448503,-941.32590164,0.00026053,2]
[419181888,1775009448512,-314.50563807,0.00026053,2]
[419181889,1775009448522,-262.08803172,0.00026053,2]
[419181890,1775009448532,-377.02935891,0.00026053,2]
[419181891,1775009448542,-238.56586183,0.00026066,2]
[419181892,1775009448551,-155.84429904,0.00026066,2]
[419181893,1775009448561,-155.9751824,0.00026066,2]
[419181894,1775009448570,-164.44812444,0.00026066,2]
[419181895,1775009448580,-160.0,0.00026074,14]
[419181896,1775009448590,-194.445623,0.00026074,14]
[419181897,1775009448599,-228.891247,0.00026074,14]
[419181898,1775009448609,-2500.0,0.00026158,2]
[419181899,1775009448618,-160.0,0.00026213,14]
[419181900,1775009448627,-223.740815,0.00026213,14]
[419181901,1775009448636,-287.48163,0.00026213,14]
[419181902,1775009448645,-434.686549,0.00026213,14]
[419181903,1775009448654,-160.0,0.00026214,7]
[419181904,1775009448664,-288.377141,0.00026309,14]
[419181905,1775009448673,-431.639528,0.00026309,14]
[419181906,1775009448682,-107545.95381926,0.0002638,2]
[419181907,1775009448692,-168.0,0.00026464,2]
[419181908,1775009448702,-2045.26937246,0.0002648,2]
[419181909,1775009448711,-42270.0,0.00026606,2]
[419181910,1775009448720,-228.28327794,0.00026621,2]
[419181911,1775009448730,-477.401,0.00026621,14]
[419181912,1775009448739,-160.0,0.00026689,8]
[419181913,1775009448748,-2756.34669434,0.00026706,2]
[419181914,1775009448757,-200.0,0.00026747,2]
[419181915,1775009448767,-1186.68,0.00026748,2]
[419181916,1775009448779,-1186.68,0.00026748,2]
[419181917,1775009448788,-1186.68,0.00026748,2]
[419181918,1775009448799,-1186.68,0.00026748,2]
[419181919,1775009448811,-1186.68,0.00026748,2]
[419181920,1775009448822,-1186.68,0.00026748,2]
[419181921,1775009448831,-1186.68,0.00026748,2]
[419181922,1775009448841,-1186.68,0.00026748,2]
[419181923,1775009448853,-1186.68,0.00026748,2]
[419181924,1775009448865,-1186.68,0.00026748,2]
[419181925,1775009448874,-1186.68,0.00026748,2]
[419181926,1775009448883,-1186.68,0.00026748,2]
[419181927,1775009448893,-1186.68,0.00026748,2]
[419181928,1775009448902,-1186.68,0.00026748,2]
[419181929,1775009448912,-1216.63,0.00026748,2]
[419181930,1775009448922,-151.0,0.00026748,2]
[419181931,1775009448931,-151.0,0.00026748,2]
[419181932,1775009448941,-359.53158,0.00026748,2]
[419181933,1775009448950,-359.53158,0.00026748,2]
[419181934,1775009448960,-359.53158,0.00026748,2]
[419181935,1775009448970,-359.53158,0.00026748,2]
[419181936,1775009448980,-500.0,0.0002681,2]
[419181937,1775009448989,-500.0,0.0002681,3]
[419181938,1775009448999,-502.58875,0.0002681,4]
[419181939,1775009449009,-67770.8935794,0.00026846,2]
[419181940,1775009449020,-602.3036788,0.00026846,2]
[419181941,1775009449030,-151.0,0.00026846,2]
[419181942,1775009449040,-151.0,0.00026846,2]
[419181943,1775009449052,-151.0,0.00026846,2]
[419181944,1775009449062,-359.53158,0.00026846,2]
[419181945,1775009449073,-359.53158,0.00026846,2]
[419181946,1775009449084,-359.53158,0.00026846,2]
[419181947,1775009449093,-359.53158,0.00026846,2]
[419181948,1775009449103,-223.887195,0.00026846,2]
[419181949,1775009449113,-223.887195,0.00026846,2]
[419181950,1775009449123,-223.887195,0.00026846,2]
[419181951,1775009449132,-223.887195,0.00026846,2]
[419181952,1775009449142,-151.0,0.00026846,2]
[419181953,1775009449151,-151.0,0.00026846,2]
[419181954,1775009449160,-202.31,0.00026849,8]
[419181955,1775009449170,-500.0,0.00026873,2]
[419181956,1775009449179,-658.5211563,0.00026898,2]
[419181957,1775009449189,-168.0,0.00026919,2]
[419181958,1775009449199,-200.0,0.00027009,3]
[419181959,1775009449209,-208.72308356,0.0002705,2]
[419181960,1775009449219,-800.0,0.00027052,2]
[419181961,1775009449228,-800.0,0.00027064,2]
[419181962,1775009449238,-800.0,0.00027074,2]
[419181963,1775009449248,-800.0,0.0002708,2]
[419181964,1775009449258,-1674.88119,0.000271,2]
[419181965,1775009449267,-800.0,0.00027149,2]
[419181966,1775009449277,-322.03099947,0.0002716,2]
[419181967,1775009449286,-800.0,0.00027163,2]
[419181968,1775009449296,-160.0,0.00027164,9]
[419181969,1775009449306,-173.11512656,0.00027164,5]
[419181970,1775009449316,-197.814,0.00027168,2]
[419181971,1775009449326,-163880.91972905,0.0002717,2]
[419181972,1775009449335,-2691671.53513545,0.0002717,2]
[419181973,1775009449363,-66374.85092779,0.0002717,2]
[419181974,1775009488367,1018.27,0.000326,120]
[419181975,1775009489837,1018.27,0.0003278,120]
[419181988,1775009753414,1176.5,0.000328,120]
[419182038,1775009903383,210.9440433,0.00032876,120]
[419182039,1775010395295,1018.27,0.000326,120]
[419182094,1775010633804,-1200.0,0.00013598,2]
[419182098,1775010633930,-1786.97584522,0.00013599,2]
[419182099,1775010633951,-10747.69354347,0.00013599,2]
[419182100,1775010633963,-1088.06501484,0.00013599,2]
[419182101,1775010633976,-379.5381162,0.00013599,2]
[419182102,1775010633998,-330.04220898,0.00013599,2]
[419182103,1775010634032,-433.45811007,0.00013599,2]
[419182152,1775010637909,-7452.40311189,0.00013599,2]
[419182164,1775010638022,-25210.03711674,0.00013599,2]
[419182166,1775010638032,-1000.0,0.00013699,2]
[419182168,1775010638043,-615.0,0.00013699,2]
[419182170,1775010638053,-300.0,0.00013869,2]
[419182172,1775010638062,-300.0,0.0001387,2]
[419182174,1775010638072,-300.0,0.0001387,2]
[419182176,1775010638082,-300.0,0.0001387,2]
[419182178,1775010638092,-300.0,0.0001387,2]
[419182180,1775010638102,-300.0,0.0001387,2]
[419182182,1775010638111,-300.0,0.0001387,2]
[419182184,1775010638121,-300.0,0.0001387,2]
[419182185,1775010638131,-300.0,0.0001387,2]
[419182187,1775010638141,-300.0,0.0001387,2]
[419182190,1775010638151,-300.0,0.0001387,2]
[419182191,1775010638161,-300.0,0.0001387,2]
[419182194,1775010638171,-300.0,0.0001387,2]
[419182196,1775010638181,-300.0,0.0001387,2]
[419182197,1775010638190,-300.0,0.0001387,2]
[419182199,1775010638201,-300.0,0.0001387,2]
[419182201,1775010638211,-600.0,0.0001387,2]
[419182203,1775010638222,-500.0,0.0001424,2]
[419182205,1775010638231,-4616.4937557,0.0001497,2]
[419182207,1775010638240,-1000.0,0.00015061,2]
[419182209,1775010638249,-420.0,0.00015196,2]
[419182211,1775010638259,-720.0,0.00015257,2]
[419182213,1775010638269,-6402.5134975,0.00015571,2]
[419182215,1775010638278,-587.0,0.00016651,2]
[419182217,1775010638288,-864.0,0.00016783,2]
[419182219,1775010638298,-160.13308367,0.00017733,2]
[419182221,1775010638309,-296.62197707,0.00018101,2]
[419182223,1775010638318,-823.0,0.00018244,2]
[419182225,1775010638328,-1000.0,0.00018461,2]
[419182227,1775010638337,-200.09531113,0.00018473,2]
[419182229,1775010638347,-182.44791173,0.00018481,2]
[419182230,1775010638356,-500.0,0.00018592,2]
[419182232,1775010638366,-500.0,0.00018592,2]
[419182234,1775010638376,-235.96831241,0.00018592,2]
[419182236,1775010638385,-500.0,0.00018592,2]
[419182239,1775010638395,-523.90812914,0.00018592,2]
[419182241,1775010638406,-500.0,0.00018592,2]
[419182243,1775010638416,-500.0,0.00018592,2]
[419182245,1775010638425,-500.0,0.00018592,2]
[419182247,1775010638435,-500.0,0.00018592,2]
[419182249,1775010638444,-500.0,0.00018592,2]
[419182251,1775010638453,-591.12445169,0.00018592,2]
[419182253,1775010638462,-500.0,0.00018592,2]
[419182255,1775010638473,-500.0,0.00018592,2]
[419182257,1775010638482,-500.0,0.00018592,2]
[419182258,1775010638492,-500.0,0.00018592,2]
[419182260,1775010638502,-500.0,0.00018592,2]
[419182262,1775010638511,-500.0,0.00018592,2]
[419182264,1775010638521,-500.0,0.00018592,2]
[419182266,1775010638531,-500.0,0.00018592,2]
[419182268,1775010638540,-500.0,0.00018592,2]
[419182270,1775010638550,-500.0,0.00018592,2]
[419182272,1775010638559,-500.0,0.00018592,2]
[419182274,1775010638569,-208.20628894,0.00018592,2]
[419182277,1775010638581,-291.79371106,0.00018592,2]
[419182279,1775010638590,-500.0,0.00018592,2]
[419182281,1775010638600,-185.59703856,0.00018592,2]
[419182478,1775010640583,-314.40296144,0.00018592,2]
[419182480,1775010640593,-65.3203969,0.00018592,2]
[419182486,1775010640640,-434.6796031,0.00018592,2]
[419182488,1775010640650,-500.0,0.00018592,2]
[419182490,1775010640660,-249.66243768,0.00018592,2]
[419182495,1775010640699,-250.33756232,0.00018592,2]
[419182497,1775010640709,-341.18057366,0.00018592,2]
[419182500,1775010640722,-158.81942634,0.00018592,2]
[419182502,1775010640733,-500.0,0.00018592,2]
[419182504,1775010640742,-500.0,0.00018592,2]
[419182506,1775010640753,-500.0,0.00018592,2]
[419182508,1775010640762,-500.0,0.00018592,2]
[419182510,1775010640772,-500.0,0.00018592,2]
[419182512,1775010640782,-500.0,0.00018592,2]
[419182514,1775010640791,-500.0,0.00018592,2]
[419182516,1775010640801,-206.20194065,0.00018593,2]
[419182719,1775010643031,-5634.12474965,0.00018593,2]
[419182721,1775010643042,-150.84031134,0.00019021,2]
[419182723,1775010643052,-1083.4511343,0.0001999,2]
[419182726,1775010643064,-68.5488657,0.0001999,2]
[419182728,1775010643073,-1000.0,0.00020307,2]
[419182730,1775010643083,-244.0,0.00020307,2]
[419182732,1775010643092,-837.0,0.00021903,2]
[419182734,1775010643101,-1000.0,0.00022338,10]
[419182736,1775010643110,-492.0,0.00022338,10]
[419182738,1775010643120,-162.88158024,0.00023887,2]
[419182740,1775010643130,-151.68706103,0.00023887,2]
[419182742,1775010643140,-151.0,0.00023887,2]
[419182744,1775010643150,-26.82084627,0.00023887,2]
[419182746,1775010643162,-124.17915373,0.00023887,2]
[419182748,1775010643171,-151.0,0.00023887,2]
[419182750,1775010643181,-151.0,0.00023887,2]
[419182752,1775010643190,-2131.71224132,0.00023887,2]
[419182754,1775010643206,-266.69969898,0.00023887,2]
[419182756,1775010643215,-67.93983218,0.00023887,2]
[419182759,1775010643227,-83.06016782,0.00023887,2]
[419182761,1775010643236,-153.01066584,0.00023887,2]
[419182763,1775010643246,-200.0,0.00023887,2]
[419182766,1775010643257,-270.83333333,0.00023972,2]
[419182769,1775010643267,-446.853,0.00024054,2]
[419182771,1775010643277,-186.066,0.00024054,2]
[419182773,1775010643287,-430.18018347,0.00024435,2]
[419182776,1775010643297,-213.54348163,0.00024477,7]
[419182779,1775010643306,-1000.0,0.00024571,10]
[419182782,1775010643315,-326.34624964,0.00024571,10]
[419183292,1775010648450,-464.65375036,0.00024571,10]
[419183294,1775010648459,-180.09004502,0.00025417,2]
[419183296,1775010648469,-20.25620462,0.00026621,2]
[419183298,1775010648481,-131.93264734,0.00026621,2]
[419183300,1775010648490,-381.921,0.00026621,14]
[419183302,1775010648500,-200.0,0.00026745,2]
[419183304,1775010648509,-500.0,0.00026746,2]
[419183306,1775010648519,-500.0,0.00026746,3]
[419183308,1775010648528,-500.0,0.00026746,4]
[419183310,1775010648538,-500.0,0.00026746,5]
[419183312,1775010648547,-253.54,0.00026747,6]
[419183315,1775010648557,-8413.64443301,0.00027,2]
[419183322,1775010648613,-253.7425319,0.00027,2]
[419183328,1775010648669,-13871.0,0.00027,2]
[419183330,1775010648681,-11544.14578143,0.00027,2]
[419187066,1775010695992,1317.9,0.000309,120]
[419187067,1775010696322,1317.9,0.000319,120]
[419187068,1775010719053,-1000.0,0.00013699,2]
[419187069,1775010719082,-615.0,0.00013699,2]
[419187070,1775010754726,-340.165,0.00017926,2]
[419187071,1775010771392,-8425.63493508,0.00018292,2]
[419187072,1775010828348,500.0,0.0003287,120]
[419187089,1775011158487,656.976,0.00032877,120]
[419187095,1775011292753,1018.06,0.000326,120]
[419187096,1775011293755,1018.06,0.00032825,120]
[419187104,1775011743004,1533.0,0.00032876,120]
[419187226,1775011838225,-677.39378888,0.00013699,2]
[419187231,1775011838332,-322.60621112,0.00013699,2]
[419187233,1775011838342,-615.0,0.00013699,2]
[419187236,1775011838352,-194.269372,0.00017241,2]
[419187238,1775011838363,-500.0,0.0001809,2]
[419187240,1775011838372,-697.80603174,0.0001809,2]
[419187242,1775011838382,-200.77650546,0.0001809,2]
[419187244,1775011838391,-500.0,0.0001809,2]
[419187246,1775011838400,-697.80603174,0.0001809,2]
[419187248,1775011838410,-697.80603174,0.0001809,2]
[419187249,1775011838419,-222.50995976,0.0001809,2]
[419187251,1775011838428,-697.80603174,0.0001809,2]
[419187253,1775011838437,-697.80603174,0.0001809,2]
[419187255,1775011838447,-697.80603174,0.0001809,2]
[419187257,1775011838456,-500.0,0.0001809,2]
[419187260,1775011838466,-697.80603174,0.0001809,2]
[419187261,1775011838477,-697.80603174,0.0001809,2]
[419187264,1775011838486,-209.80939523,0.0001809,2]
[419187772,1775011843431,-487.99663651,0.0001809,2]
[419187774,1775011843441,-697.80603174,0.0001809,2]
[419187776,1775011843450,-500.0,0.0001809,2]
[419187778,1775011843460,-383.55881893,0.0001809,2]
[419187781,1775011843471,-314.24721281,0.0001809,2]
[419187783,1775011843481,-697.80603174,0.0001809,2]
[419187786,1775011843491,-500.0,0.0001809,2]
[419187788,1775011843501,-517.15463402,0.0001809,2]
[419187790,1775011843512,-28.96334249,0.0001809,2]
[419187792,1775011843521,-367.58610004,0.0001809,2]
[419187794,1775011843532,-132.41389996,0.0001809,2]
[419187796,1775011843541,-227.25511511,0.0001809,2]
[419188042,1775011846135,-272.74488489,0.0001809,2]
[419188044,1775011846145,-500.0,0.0001809,2]
[419188046,1775011846154,-500.0,0.0001809,2]
[419188048,1775011846164,-500.0,0.0001809,2]
[419188049,1775011846174,-500.0,0.0001809,2]
[419188050,1775011846183,-500.0,0.0001809,2]
[419188052,1775011846192,-697.80603174,0.0001809,2]
[419188053,1775011846203,-621.1814501,0.0001809,2]
[419188055,1775011846212,-500.0,0.0001809,2]
[419188057,1775011846221,-697.80603174,0.0001809,2]
[419188058,1775011846231,-500.0,0.0001809,2]
[419188060,1775011846242,-697.80603174,0.0001809,2]
[419188062,1775011846251,-500.0,0.0001809,2]
[419188063,1775011846260,-697.80603174,0.0001809,2]
[419188064,1775011846270,-536.8414521,0.0001809,2]
[419188065,1775011846349,-160.96457964,0.0001809,2]
[419188066,1775011846358,-500.0,0.0001809,2]
[419188067,1775011846367,-697.80603174,0.0001809,2]
[419188068,1775011846377,-697.80603174,0.0001809,2]
[419188069,1775011846386,-697.80603174,0.0001809,2]
[419188070,1775011846396,-500.0,0.0001809,2]
[419188071,1775011846406,-500.0,0.0001809,2]
[419188072,1775011846415,-697.80603174,0.0001809,2]
[419188073,1775011846424,-697.80603174,0.0001809,2]
[419188074,1775011846433,-1308.32849626,0.0001809,2]
[419188075,1775011846442,-300.0,0.0001809,2]
[419188076,1775011846451,-1308.32849626,0.0001809,2]
[419188077,1775011846461,-1308.32849626,0.0001809,2]
[419188078,1775011846470,-1308.32849626,0.0001809,2]
[419188079,1775011846479,-1308.32849626,0.0001809,2]
[419188080,1775011846488,-1308.32849626,0.0001809,2]
[419188081,1775011846497,-1308.32849626,0.0001809,2]
[419188082,1775011846506,-19582.95841306,0.00018091,2]
[419188083,1775011846518,-15448.42783984,0.00018091,2]
[419188103,1775011854678,159.3,0.000328,120]
[419188106,1775012058181,997.0,0.0003287,120]
[419188107,1775012187927,1018.06,0.000326,120]
[419188110,1775012483190,-994.46840274,0.0001,2]
[419188125,1775012891275,1852.58,0.00032877,120]
[419188267,1775013032112,-300.0,0.00012895,2]
[419188268,1775013032123,-603.0,0.00012895,2]
[419188269,1775013032133,-1120.845315,0.00012896,2]
[419188270,1775013032161,-834.71197419,0.00012896,2]
[419188661,1775013041017,-841.52588397,0.00012896,2]
[419189022,1775013046549,-984.7182516,0.00012896,2]
[419189023,1775013046562,-1218.19857524,0.00012896,2]
[419189024,1775013046572,-5000.0,0.00013026,2]
[419189025,1775013046582,-300.0,0.00013557,2]
[419189026,1775013046591,-300.0,0.00013557,2]
[419189027,1775013046601,-300.0,0.00013557,2]
[419189028,1775013046611,-300.0,0.00013557,2]
[419189029,1775013046621,-300.0,0.00013557,2]
[419189030,1775013046630,-300.0,0.00013557,2]
[419189031,1775013046640,-300.0,0.00013557,2]
[419189032,1775013046649,-234.91830805,0.00013557,2]
[419191064,1775013084080,1018.07,0.000326,120]
[419191124,1775014232261,-170.34848793,0.00011067,2]
[419191126,1775014232271,-580.0,0.00011409,2]
[419191128,1775014232280,-170.34848794,0.00011409,2]
[419191130,1775014232290,-170.34848793,0.00011762,2]
[419191132,1775014232300,-1000.0,0.00013699,2]
[419191134,1775014232309,-1000.0,0.00014838,2]
[419191136,1775014232318,-219.26529283,0.00014971,2]
[419191138,1775014232328,-194.2693729,0.00015362,2]
[419191140,1775014232338,-2100.0,0.00015436,2]
[419191142,1775014232347,-2503.10342781,0.00017601,2]
[419191144,1775014232357,-12519.21729404,0.00017611,2]
[419191147,1775014232368,-537.60494949,0.00017611,2]
[419191149,1775014232380,-372.19726721,0.00017611,2]
[419191151,1775014232391,-438.23496928,0.00017611,2]
[419191364,1775014238426,-1138.08360464,0.00017611,2]
[419191382,1775014238585,-15653.38956349,0.00017611,2]
[419191641,1775014241131,-3861.91639536,0.00017611,2]
[419191909,1775014246807,-1964.96370625,0.00017611,2]
[419191911,1775014246817,-679.0,0.00017611,2]
[419191913,1775014246826,-683.66,0.00017701,3]
[419191915,1775014246836,-272.132,0.0001771,2]
[419191916,1775014246844,-157.594508,0.00017711,2]
[419191918,1775014246854,-151.0,0.00017711,2]
[419191921,1775014246864,-151.345521,0.00017711,2]
[419191923,1775014246873,-500.0,0.00017773,2]
[419191925,1775014246883,-500.0,0.0001781,2]
[419191927,1775014246893,-500.0,0.0001781,2]
[419191929,1775014246902,-276.4361483,0.0001781,2]
[419195845,1775014318788,25227.07615422,0.00032877,120]
[419195846,1775014357843,-7546.12599962,0.00017511,2]
[419195849,1775014520533,1195.068,0.00032877,120]
[419195850,1775014529168,500.0,0.0003287,120]
[419195854,1775014658869,197603.0,0.0003287,120]
[419195855,1775014861744,1017.91,0.000328,120]
[419195858,1775015034463,1198.699999,0.0003287,120]
[419195859,1775015178270,27674.22180423,0.00032,120]
[419195893,1775015413246,1471.23,0.00032877,120]
[419195907,1775015432474,-1000.0,0.00013699,2]
[419195908,1775015432484,-615.0,0.00013699,2]
[419195909,1775015432494,-300.0,0.00013831,2]
[419195910,1775015432503,-300.0,0.00013831,2]
[419195911,1775015432513,-300.0,0.00013831,2]
[419195912,1775015432523,-212.47473491,0.00013831,2]
[419195913,1775015432534,-577.57365006,0.00013831,2]
[419196125,1775015441393,-218.95161503,0.00013831,2]
[419196126,1775015441403,-300.0,0.00013832,2]
[419196127,1775015441413,-300.0,0.00013832,2]
[419196128,1775015441423,-300.0,0.00013832,2]
[419196129,1775015441433,-300.0,0.00013832,2]
[419196130,1775015441443,-300.0,0.00013832,2]
[419196131,1775015441453,-300.0,0.00013832,2]
[419196132,1775015441462,-300.0,0.00013832,2]
[419196133,1775015441472,-300.0,0.00013832,2]
[419196134,1775015441482,-300.0,0.00013832,2]
[419196135,1775015441491,-300.0,0.00013832,2]
[419196136,1775015441501,-300.0,0.00013832,2]
[419196137,1775015441511,-300.0,0.00013832,2]
[419196138,1775015441520,-300.0,0.00013832,2]
[419196139,1775015441530,-300.0,0.00013832,2]
[419196140,1775015441540,-300.0,0.00013832,2]
[419196141,1775015441550,-500.0,0.000139,2]
[419196142,1775015441559,-500.0,0.000139,2]
[419196143,1775015441569,-500.0,0.000139,2]
[419196144,1775015441579,-600.0,0.00014108,2]
[419196145,1775015441588,-1000.0,0.00014448,2]
[419196146,1775015441597,-1000.0,0.00014448,2]
[419196147,1775015441607,-1500.0,0.00014996,2]
[419196148,1775015441618,-1500.0,0.00014996,2]
[419196149,1775015441628,-420.0,0.00015155,2]
[419196150,1775015441638,-720.0,0.00015518,2]
[419196151,1775015441647,-342.38833765,0.00015544,2]
[419196152,1775015441656,-2000.0,0.00015544,2]
[419196153,1775015441666,-2500.0,0.00016092,2]
[419196154,1775015441676,-157.66,0.00016291,2]
[419196155,1775015441685,-587.0,0.00016606,2]
[419196156,1775015441694,-3000.0,0.0001664,2]
[419196157,1775015441703,-200.0,0.0001697,2]
[419196158,1775015441713,-2190.21549936,0.0001697,2]
[419196159,1775015441722,-500.0,0.0001697,2]
[419196160,1775015441731,-500.0,0.0001697,2]
[419196161,1775015441741,-15615.6719477,0.00016971,2]
[419196162,1775015441752,-2531.07714629,0.00016971,2]
[419196163,1775015441764,-10895.84458691,0.00016971,2]
[419196164,1775015441773,-268.48667,0.00016971,2]
[419196165,1775015441782,-268.48667,0.00016971,2]
[419196166,1775015441791,-268.48667,0.00016971,2]
[419196167,1775015441799,-268.48667,0.00016971,2]
[419196168,1775015441807,-152.497224,0.00016971,2]
[419196169,1775015441816,-152.497224,0.00016971,2]
[419196170,1775015441826,-152.497224,0.00016971,2]
[419196171,1775015441835,-152.497224,0.00016971,2]
[419196172,1775015441843,-864.0,0.0001707,2]
[419196173,1775015441851,-2683.6137343,0.00017188,2]
[419196174,1775015441860,-500.0,0.00017236,2]
[419196175,1775015441869,-574.04674444,0.00017236,2]
[419196176,1775015441877,-175.43761026,0.00017236,2]
[419196177,1775015441885,-17126.72828258,0.00017237,2]
[419196178,1775015441920,-2243.08747746,0.00017237,2]
[419196179,1775015441976,-341.44406342,0.00017237,2]
[419196180,1775015441986,-6213.91225139,0.00017237,2]
[419196196,1775015444031,-454.96465952,0.00017237,2]
[419196197,1775015444043,-14530.08035296,0.00017237,2]
[419196198,1775015444137,-875.78563592,0.00017237,2]
[419196199,1775015444194,-1246.62269966,0.00017237,2]
[419196200,1775015444205,-7477.49666069,0.00017237,2]
[419196201,1775015444217,-760.69687761,0.00017237,2]
[419196202,1775015444249,-1504.3502,0.00017237,2]
[419196209,1775015446884,-55129.91846014,0.00017237,2]
[419196210,1775015446894,-268.48667,0.00017237,2]
[419196211,1775015446904,-268.48667,0.00017237,2]
[419196212,1775015446914,-268.48667,0.00017237,2]
[419196213,1775015446924,-268.48667,0.00017237,2]
[419196214,1775015446933,-152.497224,0.00017237,2]
[419196215,1775015446943,-152.497224,0.00017237,2]
[419196216,1775015446953,-152.497224,0.00017237,2]
[419196217,1775015446963,-152.497224,0.00017237,2]
[419196218,1775015446973,-226.42253424,0.00017409,2]
[419196219,1775015446983,-582.74455005,0.00017409,2]
[419196220,1775015446993,-500.0,0.00017409,2]
[419196221,1775015447003,-582.74455005,0.00017409,2]
[419196222,1775015447013,-500.0,0.00017409,2]
[419196223,1775015447023,-582.74455005,0.00017409,2]
[419196224,1775015447033,-500.0,0.00017409,2]
[419196225,1775015447043,-582.74455005,0.00017409,2]
[419196226,1775015447053,-582.74455005,0.00017409,2]
[419196227,1775015447063,-582.74455005,0.00017409,2]
[419196228,1775015447073,-582.74455005,0.00017409,2]
[419196229,1775015447083,-582.74455005,0.00017409,2]
[419196230,1775015447094,-423.74722635,0.00017409,2]
[419196231,1775015447103,-500.0,0.00017409,2]
[419196232,1775015447114,-500.0,0.00017409,2]
[419196233,1775015447123,-582.74455005,0.00017409,2]
[419196234,1775015447132,-582.74455005,0.00017409,2]
[419196235,1775015447142,-582.74455005,0.00017409,2]
[419196236,1775015447153,-582.74455005,0.00017409,2]
[419196237,1775015447162,-500.0,0.00017409,2]
[419196238,1775015447173,-582.74455005,0.00017409,2]
[419196239,1775015447183,-582.74455005,0.00017409,2]
[419196240,1775015447193,-582.74455005,0.00017409,2]
[419196241,1775015447203,-582.74455005,0.00017409,2]
[419196242,1775015447212,-500.0,0.00017409,2]
[419196243,1775015447221,-582.74455005,0.00017409,2]
[419196244,1775015447231,-190.78104722,0.00017409,2]